fUSD/lending_fUSD_20260321
["ID","MTS","AMOUNT","RATE_DAILY","PERIOD"]
[408682838,1774114247228,-7941.0142248,0.00015206,2]
[408682839,1774114247238,-500.0,0.00015231,2]
[408682840,1774114247374,-11046.30350255,0.00015231,2]
[408682841,1774114247384,-151.0,0.00015231,2]
[408682842,1774114247393,-500.0,0.00015286,2]
[408682843,1774114247402,-11455.01673214,0.00015286,2]
[408682844,1774114247412,-151.0,0.00015286,2]
[408682845,1774114247421,-1506.28638887,0.00015316,2]
[408682846,1774114247430,-1000.0,0.00015316,2]
[408682847,1774114247439,-500.0,0.00015316,2]
[408682848,1774114247448,-879.24,0.00015327,2]
[408682849,1774114247459,-200.0,0.00015328,2]
[408682850,1774114247470,-500.0,0.00015341,2]
[408682851,1774114247479,-11878.85235123,0.00015341,2]
[408682852,1774114247489,-151.0,0.00015341,2]
[408682853,1774114247498,-1467.64,0.00015342,2]
[408682854,1774114247507,-433.0,0.00015343,2]
[408682855,1774114247517,-304.51,0.00015359,2]
[408682856,1774114247527,-2403.0,0.0001536,2]
[408682857,1774114247536,-1568.0,0.0001536,2]
[408682858,1774114247546,-198.0,0.0001536,2]
[408682859,1774114247555,-500.0,0.00015396,2]
[408682860,1774114247564,-12318.36988823,0.00015396,2]
[408682861,1774114247573,-783.45,0.000154,2]
[408682862,1774114247582,-4052.08,0.00015416,2]
[408682863,1774114247591,-539.1,0.00015416,2]
[408682864,1774114247601,-2500.0,0.00015416,2]
[408682865,1774114247610,-160.0,0.00015421,2]
[408682866,1774114247619,-979.16666667,0.00015421,2]
[408682867,1774114247628,-526.64865505,0.00015423,2]
[408682868,1774114247637,-160.0,0.00015425,2]
[408682869,1774114247646,-8718.02588603,0.00015446,2]
[408682870,1774114247655,-32605.39692209,0.00015446,2]
[408682871,1774114247664,-500.0,0.00015451,2]
[408682872,1774114247674,-12774.14957409,0.00015451,2]
[408682873,1774114247683,-161.0,0.00015458,2]
[408682874,1774114247693,-967.0,0.00015458,2]
[408682875,1774114247703,-13246.79310833,0.00015506,2]
[408682876,1774114247712,-350.0,0.00015515,3]
[408682877,1774114247721,-600.0,0.00015538,2]
[408682878,1774114247731,-4302.33832226,0.00015561,2]
[408682879,1774114247740,-1000.0,0.00015564,2]
[408682880,1774114247750,-1000.0,0.00015564,2]
[408682881,1774114247759,-1000.0,0.00015564,2]
[408682882,1774114247768,-350.0,0.00015587,2]
[408682883,1774114247777,-267.71316436,0.00015598,2]
[408682884,1774114247787,-1417.39,0.000156,2]
[408682885,1774114247796,-479.76,0.00015601,2]
[408682886,1774114247805,-1065.67619672,0.0001561,2]
[408682887,1774114247815,-1000.0,0.0001561,2]
[408682888,1774114247824,-1000.0,0.0001561,2]
[408682889,1774114247833,-400.0,0.00015616,2]
[408682890,1774114247843,-436.75765577,0.00015616,2]
[408682891,1774114247852,-1467.64,0.00015616,2]
[408682892,1774114247862,-1000.0,0.00015635,2]
[408682893,1774114247871,-625.4319238,0.00015635,2]
[408682894,1774114247880,-1000.0,0.00015635,2]
[408682895,1774114247890,-723.59,0.00015674,2]
[408682896,1774114247900,-2403.0,0.0001568,2]
[408682897,1774114247909,-1747.498799,0.0001568,2]
[408682898,1774114247919,-1568.0,0.0001568,2]
[408682899,1774114247928,-175.80633259,0.00015695,2]
[408682900,1774114247937,-495.59,0.000157,2]
[408682901,1774114247947,-871.28,0.000157,2]
[408682902,1774114247956,-1418.43,0.000157,2]
[408682903,1774114247965,-962.58,0.000157,2]
[408682904,1774114247974,-150.0,0.00015723,2]
[408682905,1774114247983,-150.0,0.00015723,2]
[408682906,1774114247992,-500.0,0.00015723,2]
[408682907,1774114248001,-150.0,0.00015723,2]
[408682908,1774114248011,-500.0,0.00015723,2]
[408682909,1774114248020,-172.7281616,0.00015723,2]
[408682910,1774114248029,-150.0,0.00015723,2]
[408682911,1774114248038,-500.0,0.00015723,2]
[408682912,1774114248047,-500.0,0.00015723,2]
[408682913,1774114248057,-239.48115894,0.00015723,2]
[408682914,1774114248067,-464.5671109,0.00015723,2]
[408682915,1774114248076,-500.0,0.00015723,2]
[408682916,1774114248087,-230.61276914,0.00015723,2]
[408682917,1774114248102,-557.0,0.00015725,2]
[408682918,1774114248112,-1000.0,0.00015727,2]
[408682919,1774114248121,-301.11,0.00015737,2]
[408682920,1774114248130,-150.0,0.00015745,2]
[408682921,1774114248140,-8718.02588603,0.00015747,2]
[408682922,1774114248149,-32605.39692209,0.00015747,2]
[408682923,1774114248159,-3832.02,0.00015753,2]
[408682924,1774114248168,-150.0,0.00015761,2]
[408682925,1774114248178,-1000.0,0.00015761,2]
[408682926,1774114248187,-557.0,0.00015762,2]
[408682927,1774114248197,-557.0,0.00015769,2]
[408682928,1774114248207,-2351.0,0.00015774,2]
[408682929,1774114248219,-350.0,0.00015787,2]
[408682930,1774114248228,-215.05,0.00015791,2]
[408682931,1774114248237,-2730.453,0.00015791,2]
[408682932,1774114248248,-1000.0,0.00015792,2]
[408682933,1774114248258,-346.05,0.000158,2]
[408682934,1774114248267,-1000.0,0.00015819,2]
[408682935,1774114248276,-150.0,0.00015826,2]
[408682936,1774114248289,-1000.0,0.00015833,2]
[408682937,1774114248299,-889.85621951,0.00015837,2]
[408682938,1774114248308,-49284.66074,0.0001584,2]
[408682939,1774114248318,-623.0,0.00015846,2]
[408682940,1774114248327,-500.0,0.00015846,2]
[408682941,1774114248337,-507.82734727,0.00015846,2]
[408682942,1774114248348,-500.0,0.00015846,2]
[408682943,1774114248357,-500.0,0.00015846,2]
[408682944,1774114248367,-500.0,0.00015846,2]
[408682945,1774114248377,-500.0,0.00015846,2]
[408682946,1774114248386,-625.0,0.00015846,2]
[408682947,1774114248396,-625.0,0.00015846,2]
[408682948,1774114248406,-625.0,0.00015846,2]
[408682949,1774114248416,-625.0,0.00015846,2]
[408682950,1774114248428,-500.0,0.00015846,2]
[408682951,1774114248438,-500.0,0.00015846,2]
[408682952,1774114248448,-500.0,0.00015846,2]
[408682953,1774114248458,-500.0,0.00015846,2]
[408682954,1774114248469,-500.0,0.00015846,2]
[408682955,1774114248478,-500.0,0.00015846,2]
[408682956,1774114248487,-500.0,0.00015846,2]
[408682957,1774114248496,-325.89253221,0.00015846,2]
[408682958,1774114248505,-4052.08,0.00015846,2]
[408682959,1774114248515,-4052.08,0.00015846,2]
[408682960,1774114248524,-4052.08,0.00015846,2]
[408682961,1774114248533,-4052.08,0.00015846,2]
[408682962,1774114248542,-4052.08,0.00015846,2]
[408682963,1774114248551,-4052.16,0.00015846,2]
[408682964,1774114248561,-514.67444473,0.00015846,2]
[408682965,1774114248570,-539.1,0.00015846,2]
[408682966,1774114248579,-539.1,0.00015846,2]
[408682967,1774114248589,-539.1,0.00015846,2]
[408682968,1774114248598,-539.1,0.00015846,2]
[408682969,1774114248607,-539.1,0.00015846,2]
[408682970,1774114248616,-539.12655045,0.00015846,2]
[408682971,1774114248626,-500.0,0.00015846,2]
[408682972,1774114248636,-500.0,0.00015846,2]
[408682973,1774114248646,-862.94,0.00015846,2]
[408682974,1774114248655,-500.0,0.00015846,2]
[408682975,1774114248665,-862.94,0.00015846,2]
[408682976,1774114248675,-500.0,0.00015846,2]
[408682977,1774114248685,-862.94,0.00015846,2]
[408682978,1774114248694,-862.94,0.00015846,2]
[408682979,1774114248703,-525.53489996,0.00015846,2]
[408682980,1774114248712,-2500.0,0.00015846,2]
[408682981,1774114248722,-2500.0,0.00015846,2]
[408682982,1774114248732,-2500.0,0.00015846,2]
[408682983,1774114248741,-2500.0,0.00015846,2]
[408682984,1774114248751,-2644.76422336,0.00015846,2]
[408682985,1774114248761,-666.0,0.00015846,2]
[408682986,1774114248770,-672.63120487,0.00015846,2]
[408682987,1774114248779,-926930.2393764,0.00015847,2]
[408682988,1774114248789,-46248.9367771,0.00015847,2]
[408682989,1774114248798,-151.0,0.00015847,2]
[408682990,1774114248808,-159.535148,0.00015847,2]
[408682991,1774114248818,-159.535148,0.00015847,2]
[408682992,1774114248829,-159.535148,0.00015847,2]
[408682993,1774114248838,-159.535148,0.00015847,2]
[408682994,1774114248848,-151.0,0.00015847,2]
[408682995,1774114248857,-203.302576,0.00015847,2]
[408682996,1774114248866,-151.0,0.00015847,2]
[408682997,1774114248875,-884.017822,0.00015847,2]
[408682998,1774114248885,-884.017822,0.00015847,2]
[408682999,1774114248894,-884.017822,0.00015847,2]
[408683000,1774114248904,-884.017822,0.00015847,2]
[408683001,1774114248913,-151.0,0.00015847,2]
[408683002,1774114248922,-151.0,0.00015847,2]
[408683003,1774114248932,-151.0,0.00015847,2]
[408683004,1774114248942,-5000.0,0.00015847,2]
[408683005,1774114248951,-5000.0,0.00015847,2]
[408683006,1774114248961,-5000.0,0.00015847,2]
[408683007,1774114248971,-5000.0,0.00015847,2]
[408683008,1774114248980,-5000.0,0.00015847,2]
[408683009,1774114248990,-5000.0,0.00015847,2]
[408683010,1774114249000,-351.045758,0.00015847,2]
[408683011,1774114249010,-487.372772,0.00015847,2]
[408683012,1774114249019,-487.372772,0.00015847,2]
[408683013,1774114249029,-487.372772,0.00015847,2]
[408683014,1774114249039,-487.372772,0.00015847,2]
[408683015,1774114249049,-151.0,0.00015847,2]
[408683016,1774114249060,-201.970371,0.00015847,2]
[408683017,1774114249070,-201.970371,0.00015847,2]
[408683018,1774114249081,-201.970371,0.00015847,2]
[408683019,1774114249091,-201.970371,0.00015847,2]
[408683020,1774114249101,-151.0,0.00015847,2]
[408683021,1774114249111,-151.0,0.00015847,2]
[408683022,1774114249121,-510.99373,0.00015847,2]
[408683023,1774114249131,-2501.371654,0.00015847,2]
[408683024,1774114249141,-510.99373,0.00015847,2]
[408683025,1774114249151,-2501.371654,0.00015847,2]
[408683026,1774114249162,-510.99373,0.00015847,2]
[408683027,1774114249172,-510.99373,0.00015847,2]
[408683028,1774114249183,-2501.371654,0.00015847,2]
[408683029,1774114249193,-2501.371654,0.00015847,2]
[408683030,1774114249203,-151.0,0.00015847,2]
[408683031,1774114249217,-151.0,0.00015847,2]
[408683032,1774114249226,-350.0,0.0001585,2]
[408683033,1774114249236,-516.79,0.00015862,2]
[408683034,1774114249246,-268.45,0.00015862,2]
[408683035,1774114249256,-218.0,0.00015863,2]
[408683036,1774114249266,-500.0,0.00015863,2]
[408683037,1774114249276,-500.0,0.00015871,2]
[408683038,1774114249286,-500.0,0.00015872,2]
[408683039,1774114249296,-500.0,0.00015872,2]
[408683040,1774114249305,-500.0,0.00015872,2]
[408683041,1774114249315,-500.0,0.00015873,2]
[408683042,1774114249324,-500.0,0.00015873,2]
[408683043,1774114249334,-500.0,0.00015873,2]
[408683044,1774114249343,-500.0,0.00015873,2]
[408683045,1774114249353,-500.68884962,0.00015873,2]
[408683046,1774114249363,-200.0,0.00015876,2]
[408683047,1774114249373,-1000.0,0.00015881,2]
[408683048,1774114249383,-1000.0,0.00015886,2]
[408683049,1774114249392,-1467.64,0.0001589,2]
[408683050,1774114249402,-2000.0,0.0001589,2]
[408683051,1774114249411,-150.0,0.00015897,2]
[408683052,1774114249421,-178.04375353,0.000159,2]
[408683053,1774114249430,-274.24745516,0.000159,2]
[408683054,1774114249440,-25000.0,0.000159,3]
[408683055,1774114249450,-9192.1786549,0.000159,3]
[408683056,1774114249460,-526.64865505,0.000159,2]
[408683057,1774114249470,-424.15409199,0.000159,2]
[408683058,1774114249480,-4431.0,0.000159,5]
[408683059,1774114249489,-3350.0,0.000159,5]
[408683060,1774114249500,-350.0,0.00015902,2]
[408683061,1774114249509,-150.0,0.00015902,2]
[408683062,1774114249519,-1000.0,0.00015902,2]
[408683063,1774114249528,-1000.0,0.00015915,2]
[408683064,1774114249538,-1000.0,0.00015922,2]
[408683065,1774114249549,-281.0,0.00015925,2]
[408683066,1774114249559,-150.0,0.00015925,2]
[408683067,1774114249569,-1000.0,0.00015926,2]
[408683068,1774114249580,-150.0,0.00015938,2]
[408683069,1774114249590,-161.0,0.0001594,2]
[408683070,1774114249600,-1078.35161779,0.00015943,2]
[408683071,1774114249609,-150.0,0.00015953,2]
[408683072,1774114249619,-1962.81419762,0.00015956,2]
[408683073,1774114249628,-1072.0,0.00015965,2]
[408683074,1774114249638,-400.0,0.0001597,2]
[408683075,1774114249647,-400.0,0.0001597,2]
[408683076,1774114249657,-700.0,0.0001597,2]
[408683077,1774114249666,-400.0,0.0001597,2]
[408683078,1774114249676,-700.0,0.0001597,2]
[408683079,1774114249686,-700.0,0.0001597,2]
[408683080,1774114249696,-700.0,0.0001597,2]
[408683081,1774114249705,-700.0,0.0001597,2]
[408683082,1774114249715,-700.0,0.0001597,2]
[408683083,1774114249725,-1174.29303336,0.0001597,2]
[408683084,1774114249735,-700.0,0.0001597,2]
[408683085,1774114249745,-400.0,0.0001597,2]
[408683086,1774114249755,-449.06978302,0.0001597,2]
[408683087,1774114249764,-500.0,0.00015973,2]
[408683088,1774114249774,-500.0,0.00015973,2]
[408683089,1774114249784,-500.0,0.00015973,2]
[408683090,1774114249793,-278.33101687,0.00015973,2]
[408683091,1774114249802,-500.0,0.00015973,2]
[408683092,1774114249811,-500.0,0.00015973,2]
[408683093,1774114249819,-500.0,0.00015973,2]
[408683094,1774114249827,-500.0,0.00015973,2]
[408683095,1774114249834,-500.0,0.00015973,2]
[408683096,1774114249844,-534.94621058,0.00015973,2]
[408683097,1774114249853,-500.0,0.00015973,2]
[408683098,1774114249863,-500.0,0.00015973,2]
[408683099,1774114249874,-240.45947328,0.00015973,2]
[408683100,1774114249885,-500.0,0.00015973,2]
[408683101,1774114249895,-500.0,0.00015973,2]
[408683102,1774114249904,-500.0,0.00015973,2]
[408683103,1774114249913,-501.53205621,0.00015973,2]
[408683104,1774114249923,-568.73940458,0.00015973,2]
[408683105,1774114249934,-500.0,0.00015973,2]
[408683106,1774114249946,-500.0,0.00015973,2]
[408683107,1774114249958,-500.0,0.00015973,2]
[408683108,1774114249968,-339.13696056,0.00015973,2]
[408683109,1774114249977,-500.0,0.00015973,2]
[408683110,1774114249986,-500.0,0.00015973,2]
[408683111,1774114249996,-598.52796436,0.00015973,2]
[408683112,1774114250005,-500.0,0.00015973,2]
[408683113,1774114250014,-500.0,0.00015973,2]
[408683114,1774114250023,-500.0,0.00015973,2]
[408683115,1774114250032,-210.78762468,0.00015973,2]
[408683116,1774114250041,-500.0,0.00015973,2]
[408683117,1774114250051,-224.0,0.00015978,2]
[408683118,1774114250060,-1000.0,0.00015986,2]
[408683119,1774114250070,-151.0,0.00015997,2]
[408683120,1774114250079,-150.0,0.00015998,2]
[408683121,1774114250087,-732.60654138,0.00015999,2]
[408683122,1774114250096,-500.0,0.00015999,2]
[408683123,1774114250106,-500.0,0.00015999,2]
[408683124,1774114250115,-355.55659377,0.00015999,2]
[408683125,1774114250124,-625.0,0.00015999,2]
[408683126,1774114250134,-625.0,0.00015999,2]
[408683127,1774114250143,-625.0,0.00015999,2]
[408683128,1774114250153,-625.0,0.00015999,2]
[408683129,1774114250163,-625.0,0.00015999,2]
[408683130,1774114250172,-625.0,0.00015999,2]
[408683131,1774114250182,-625.0,0.00015999,2]
[408683132,1774114250191,-625.0,0.00015999,2]
[408683133,1774114250201,-625.0,0.00015999,2]
[408683134,1774114250211,-625.0,0.00015999,2]
[408683135,1774114250224,-500.0,0.00015999,2]
[408683136,1774114250233,-500.0,0.00015999,2]
[408683137,1774114250242,-500.0,0.00015999,2]
[408683138,1774114250251,-500.0,0.00015999,2]
[408683139,1774114250262,-500.0,0.00015999,2]
[408683140,1774114250274,-500.0,0.00015999,2]
[408683141,1774114250283,-500.0,0.00015999,2]
[408683142,1774114250294,-500.0,0.00015999,2]
[408683143,1774114250305,-500.0,0.00015999,2]
[408683144,1774114250316,-500.0,0.00015999,2]
[408683145,1774114250326,-862.94,0.00015999,2]
[408683146,1774114250335,-500.0,0.00015999,2]
[408683147,1774114250344,-862.94,0.00015999,2]
[408683148,1774114250354,-500.0,0.00015999,2]
[408683149,1774114250363,-862.94,0.00015999,2]
[408683150,1774114250372,-862.94,0.00015999,2]
[408683151,1774114250383,-321.19810832,0.00015999,2]
[408683152,1774114250392,-862.94,0.00015999,2]
[408683153,1774114250401,-862.94,0.00015999,2]
[408683154,1774114250410,-862.94,0.00015999,2]
[408683155,1774114250419,-862.94,0.00015999,2]
[408683156,1774114250428,-862.94,0.00015999,2]
[408683157,1774114250437,-862.98745051,0.00015999,2]
[408683158,1774114250447,-895.34741541,0.00015999,2]
[408683159,1774114250456,-895.34741541,0.00015999,2]
[408683160,1774114250466,-895.34741541,0.00015999,2]
[408683161,1774114250475,-895.34741541,0.00015999,2]
[408683162,1774114250484,-895.34741541,0.00015999,2]
[408683163,1774114250494,-895.34741541,0.00015999,2]
[408683164,1774114250503,-895.34741541,0.00015999,2]
[408683165,1774114250513,-895.34741541,0.00015999,2]
[408683166,1774114250521,-895.34741541,0.00015999,2]
[408683167,1774114250655,-895.34741541,0.00015999,2]
[408683168,1774114250665,-895.34741541,0.00015999,2]
[408683169,1774114250675,-895.34741541,0.00015999,2]
[408683170,1774114250685,-895.34741541,0.00015999,2]
[408683171,1774114250694,-895.34741541,0.00015999,2]
[408683172,1774114250704,-895.34741541,0.00015999,2]
[408683173,1774114250713,-895.34741541,0.00015999,2]
[408683174,1774114250722,-895.34741541,0.00015999,2]
[408683175,1774114250731,-895.34741541,0.00015999,2]
[408683176,1774114250741,-895.34741541,0.00015999,2]
[408683177,1774114250750,-895.34741541,0.00015999,2]
[408683178,1774114250760,-895.34741541,0.00015999,2]
[408683179,1774114250770,-895.34741541,0.00015999,2]
[408683180,1774114250779,-895.34741541,0.00015999,2]
[408683181,1774114250788,-895.34741541,0.00015999,2]
[408683182,1774114250798,-895.34741541,0.00015999,2]
[408683183,1774114250807,-1125989.72562523,0.00016,2]
[408683184,1774114250979,-1633163.41016017,0.00016,2]
[408683185,1774114250989,-500.0,0.00016,2]
[408683186,1774114250998,-500.0,0.00016,2]
[408683187,1774114251007,-500.0,0.00016,2]
[408683188,1774114251017,-500.0,0.00016,2]
[408683189,1774114251026,-500.0,0.00016,2]
[408683190,1774114251035,-500.0,0.00016,2]
[408683191,1774114251045,-500.0,0.00016,2]
[408683192,1774114251055,-500.0,0.00016,2]
[408683193,1774114251064,-503.7,0.00016,2]
[408683194,1774114251074,-1000.0,0.00016,2]
[408683195,1774114251083,-1000.0,0.00016,2]
[408683196,1774114251092,-1000.0,0.00016,2]
[408683197,1774114251102,-1000.0,0.00016,2]
[408683198,1774114251111,-1000.0,0.00016,2]
[408683199,1774114251121,-1000.0,0.00016,2]
[408683200,1774114251130,-1000.0,0.00016,2]
[408683201,1774114251140,-1000.0,0.00016,2]
[408683202,1774114251150,-1000.0,0.00016,2]
[408683203,1774114251159,-1000.0,0.00016,2]
[408683204,1774114251168,-1000.0,0.00016,2]
[408683205,1774114251178,-1000.0,0.00016,2]
[408683206,1774114251188,-1000.0,0.00016,2]
[408683207,1774114251198,-5000.0,0.00016,2]
[408683208,1774114251207,-150.0,0.00016,2]
[408683209,1774114251221,-3394145.60730273,0.00016,2]
[408683210,1774114251903,-214.985057,0.00015847,2]
[408683211,1774114251912,-151.0,0.00015847,2]
[408683212,1774114251921,-8013.07322584,0.00016,2]
[408683213,1774114251947,-151.0,0.00013698,2]
[408683214,1774114251957,-246.19564492,0.00013698,2]
[408683215,1774114251965,-426.80435508,0.00016,2]
[408683216,1774114252130,-97092.6944812,0.00016,2]
[408683217,1774114252142,-881.45672485,0.00016,2]
[408683218,1774114252155,-36035.14752852,0.00016,2]
[408683219,1774114252246,-4121.84038596,0.00016,2]
[408683220,1774114252258,-1037.32092717,0.00016,2]
[408683221,1774114252269,-793.1136,0.00016,2]
[408683222,1774114252280,-335.819307,0.00016,2]
[408683223,1774114252292,-2112.0,0.00016,2]
[408683224,1774114252341,-445.5,0.00016,2]
[408683225,1774114268955,369.1929,0.00012926,2]
[408683226,1774114289471,7757.50742008,0.00012937,2]
[408683227,1774114289494,10000.01,0.00012937,2]
[408683228,1774114289517,10000.01,0.00012937,2]
[408683229,1774114289543,10000.01,0.00012937,2]
[408683230,1774114289567,10000.01,0.00012937,2]
[408683231,1774114289590,10000.01,0.00012937,2]
[408683232,1774114289613,10000.01,0.00012937,2]
[408683233,1774114289636,10000.01,0.00012937,2]
[408683234,1774114289658,10000.01,0.00012937,2]
[408683235,1774114289681,10000.01,0.00012937,2]
[408683236,1774114300458,-347.85648274,0.00012937,2]
[408683237,1774114300552,-10000.01,0.00012937,2]
[408683238,1774114300641,-10000.01,0.00012937,2]
[408683239,1774114300747,-10000.01,0.00012937,2]
[408683240,1774114300837,-10000.01,0.00012937,2]
[408683241,1774114300936,-10000.01,0.00012937,2]
[408683242,1774114301029,-10000.01,0.00012937,2]
[408683243,1774114301136,-10000.01,0.00012937,2]
[408683244,1774114301180,5533.0,0.000112,5]
[408683245,1774114301269,-10000.01,0.00012937,2]
[408683246,1774114301405,4467.0,0.000111,3]
[408683247,1774114303841,-10000.01,0.00012937,2]
[408683248,1774114303941,-10000.01,0.00012937,2]
[408683249,1774114315174,200.0,0.000128,2]
[408683251,1774114383579,-150.0,0.00012935,2]
[408683252,1774114384419,200.0,0.000128,2]
[408683253,1774114403623,10000.01,0.00012926,2]
[408683254,1774114403643,10000.01,0.00012926,2]
[408683255,1774114403663,10000.01,0.00012926,2]
[408683256,1774114403683,10000.01,0.00012926,2]
[408683257,1774114403704,10000.01,0.00012926,2]
[408683258,1774114403724,1315.71968971,0.00012926,2]
[408683259,1774114415900,2417.0019881,0.00012858,2]
[408683260,1774114428692,5533.0,0.000112,5]
[408683261,1774114432310,2050.0080119,0.0001258,2]
[408683262,1774114432623,10000.01,0.0001258,2]
[408683263,1774114432651,10000.01,0.0001258,2]
[408683264,1774114432677,10000.01,0.0001258,2]
[408683265,1774114432698,10000.01,0.0001258,2]
[408683266,1774114432718,10000.01,0.0001258,2]
[408683267,1774114432738,10000.01,0.0001258,2]
[408683268,1774114432760,10000.01,0.0001258,2]
[408683269,1774114432783,195385.7819881,0.0001258,2]
[408683276,1774114511395,-300.0,0.00012935,2]
[408683277,1774114511423,-1200.0,0.00012935,2]
[408683278,1774114561410,300.0,0.00012935,2]
[408683279,1774114562071,150.0,0.00012935,2]
[408683280,1774114567561,1315.40625271,0.00012858,2]
[408683281,1774114621583,300.0,0.00012935,2]
[408683282,1774114638330,200.0,0.00012929,2]
[408683283,1774114682075,4734.60374729,0.0001258,2]
[408683284,1774114682096,10000.01,0.0001258,2]
[408683285,1774114682116,10000.01,0.0001258,2]
[408683286,1774114682140,9400.95625271,0.0001258,2]
[408683287,1774114741218,300.0,0.00012935,2]
[408683288,1774114742273,150.0,0.00012935,2]
[408683289,1774114742433,3530.25414779,0.00012858,2]
[408683290,1774114801317,300.0,0.00012935,2]
[408683291,1774114801636,1200.0,0.00012935,2]
[408683292,1774114802104,2175.30178929,0.00012858,2]
[408683293,1774114848221,1150.98047113,0.00012858,2]
[408683294,1774114922044,150.0,0.00012935,2]
[408683295,1774114932723,500.0,0.00012936,2]
[408683296,1774114933328,500.0,0.00012936,2]
[408683297,1774114933936,500.0,0.00012936,2]
[408683298,1774114934558,500.0,0.00012936,2]
[408683299,1774114935126,500.0,0.00012936,2]
[408683300,1774114935774,500.0,0.00012936,2]
[408683301,1774114939779,580.25074744,0.00012936,2]
[408683302,1774114943622,151.0,0.00012936,2]
[408683303,1774114944282,151.0,0.00012936,2]
[408683304,1774114946944,200.0,0.00012936,2]
[408683305,1774114948308,151.0,0.00012936,2]
[408683306,1774114948913,151.0,0.00012936,2]
[408683307,1774114949533,151.0,0.00012936,2]
[408683308,1774114950087,-500.0,0.00012936,2]
[408683309,1774114950153,151.0,0.00012936,2]
[408683310,1774114977981,286.59814687,0.00012858,2]
[408683311,1774115041296,300.0,0.00012935,2]
[408683312,1774115085445,182.14375914,0.00012858,2]
[408683313,1774115101014,1200.0,0.00012935,2]
[408683314,1774115101047,300.0,0.00012935,2]
[408683315,1774115102001,150.0,0.00012935,2]
[408683316,1774115110350,2648.5287,0.00012837,2]
[408683317,1774115141904,-250.0,0.00012936,2]
[408683318,1774115141930,-500.0,0.00012936,2]
[408683319,1774115141954,-391.38294051,0.00012936,2]
[408683320,1774115141978,-500.0,0.00012936,2]
[408683321,1774115142005,-500.0,0.00012936,2]
[408683322,1774115142036,-500.0,0.00012936,2]
[408683323,1774115142066,-202.31715707,0.00012936,2]
[408683324,1774115142108,-500.0,0.00012936,2]
[408683325,1774115142139,-500.0,0.00012936,2]
[408683326,1774115142170,-529.31294881,0.00012936,2]
[408683327,1774115142200,-307.77077871,0.00012936,2]
[408683328,1774115142231,-138.4423498,0.00012936,2]
[408683329,1774115142647,-361.5576502,0.00012936,2]
[408683330,1774115142682,-622.62495934,0.00012936,2]
[408683331,1774115142711,-500.0,0.00012936,2]
[408683332,1774115142740,-500.0,0.00012936,2]
[408683333,1774115142775,-622.62495934,0.00012936,2]
[408683334,1774115142809,-622.62495934,0.00012936,2]
[408683335,1774115142842,-500.0,0.00012936,2]
[408683336,1774115142875,-622.62495934,0.00012936,2]
[408683337,1774115142909,-444.78820382,0.00012936,2]
[408683338,1774115143051,-622.62495934,0.00012936,2]
[408683339,1774115143081,-627.0647817,0.00012936,2]
[408683340,1774115143114,-622.62495934,0.00012936,2]
[408683341,1774115143148,-622.62495934,0.00012936,2]
[408683342,1774115143182,-622.62495934,0.00012936,2]
[408683343,1774115143216,-622.62495934,0.00012936,2]
[408683344,1774115143252,-622.62495934,0.00012936,2]